[Event "GrandPrix_29.05"]
[Site "Chess.com"]
[Date "2020.05.29"]
[Round "5"]
[White "Bulldog167"]
[Black "AsadliVugar"]
[Result "0-1"]
[WhiteElo "2389"]
[BlackElo "2417"]
[TimeControl "600+2"]
[EndTime "11:30:09 PDT"]
[Termination "AsadliVugar won by resignation"]

1. Nf3 {[%clk 0:10:01.9]} 1... Nf6 {[%clk 0:09:56.3]} 2. e3 {[%clk 0:10:00.3]}
2... g6 {[%clk 0:09:54.6]} 3. b3 {[%clk 0:09:59.7]} 3... Bg7 {[%clk 0:09:56]} 4.
Bb2 {[%clk 0:10:00.9]} 4... O-O {[%clk 0:09:57.6]} 5. d4 {[%clk 0:09:59.9]} 5...
b6 {[%clk 0:09:25.6]} 6. c4 {[%clk 0:09:54.3]} 6... Bb7 {[%clk 0:09:26.1]} 7.
Be2 {[%clk 0:09:29.4]} 7... d6 {[%clk 0:09:15.1]} 8. O-O {[%clk 0:09:18.2]} 8...
Nbd7 {[%clk 0:09:15.5]} 9. d5 {[%clk 0:09:03.7]} 9... c6 {[%clk 0:09:04.4]} 10.
dxc6 {[%clk 0:09:03.9]} 10... Bxc6 {[%clk 0:09:06]} 11. Nc3 {[%clk 0:09:00.6]}
11... a6 {[%clk 0:09:02.5]} 12. Nd4 {[%clk 0:08:59.2]} 12... Bb7 {[%clk
0:09:03.5]} 13. Bf3 {[%clk 0:08:57.1]} 13... Qc7 {[%clk 0:09:02.2]} 14. Nd5
{[%clk 0:08:19.9]} 14... Nxd5 {[%clk 0:08:49.9]} 15. cxd5 {[%clk 0:08:20.5]}
15... Ne5 {[%clk 0:08:46.5]} 16. Rc1 {[%clk 0:08:20.5]} 16... Qd7 {[%clk
0:08:46.9]} 17. Be4 {[%clk 0:07:34.7]} 17... f5 {[%clk 0:08:32.5]} 18. Ne6
{[%clk 0:07:02]} 18... Rfc8 {[%clk 0:08:16.9]} 19. Rxc8+ {[%clk 0:05:58.3]}
19... Rxc8 {[%clk 0:08:14.2]} 20. Nxg7 {[%clk 0:05:58.8]} 20... fxe4 {[%clk
0:08:03.2]} 21. Ne6 {[%clk 0:05:22.6]} 21... Nd3 {[%clk 0:07:58.7]} 22. Ba1
{[%clk 0:05:03.5]} 22... Rc1 {[%clk 0:07:13.4]} 23. Qd2 {[%clk 0:05:03.7]} 23...
Rxf1+ {[%clk 0:06:56.7]} 24. Kxf1 {[%clk 0:05:05.6]} 24... Qb5 {[%clk 0:06:57]}
25. Kg1 {[%clk 0:03:19.2]} 25... Qxd5 {[%clk 0:06:50.6]} 26. Qc3 {[%clk
0:03:03]} 26... Ne5 {[%clk 0:06:42.5]} 27. Nd4 {[%clk 0:03:04]} 27... Nd7 {[%clk
0:06:19.3]} 28. Qc7 {[%clk 0:02:57]} 28... Qc5 {[%clk 0:05:59.3]} 29. Qd8+
{[%clk 0:02:57]} 29... Kf7 {[%clk 0:05:59.9]} 30. Bb2 {[%clk 0:02:31.9]} 30...
Qc8 {[%clk 0:05:50.5]} 31. Qxc8 {[%clk 0:02:33.1]} 31... Bxc8 {[%clk 0:05:52.1]}
32. Ne2 {[%clk 0:02:28.7]} 32... e5 {[%clk 0:05:52.4]} 33. Kf1 {[%clk
0:02:28.3]} 33... Ke6 {[%clk 0:05:53.1]} 34. Ke1 {[%clk 0:02:29.5]} 34... Nc5
{[%clk 0:05:51.8]} 35. Nc1 {[%clk 0:02:28.9]} 35... a5 {[%clk 0:05:49.9]} 36.
Ba3 {[%clk 0:02:22.5]} 36... d5 {[%clk 0:05:49.3]} 37. b4 {[%clk 0:02:10.9]}
37... axb4 {[%clk 0:05:49.2]} 38. Bxb4 {[%clk 0:02:12.8]} 38... d4 {[%clk
0:05:48.8]} 39. Kd2 {[%clk 0:02:07.9]} 39... Kd5 {[%clk 0:05:49.3]} 40. f3
{[%clk 0:01:57.5]} 40... Ba6 {[%clk 0:05:30.2]} 41. Nb3 {[%clk 0:01:45.9]} 41...
exf3 {[%clk 0:05:02.8]} 42. gxf3 {[%clk 0:01:46.4]} 42... Bc4 {[%clk 0:05:04.4]}
43. Nc1 {[%clk 0:01:11.8]} 43... Ne6 {[%clk 0:04:38.1]} 44. Be7 {[%clk
0:01:05.7]} 44... dxe3+ {[%clk 0:04:30.9]} 45. Kxe3 {[%clk 0:01:06.8]} 45... Nd4
{[%clk 0:04:32.1]} 46. Bd8 {[%clk 0:01:03.9]} 46... b5 {[%clk 0:04:29.8]} 47. a3
{[%clk 0:00:47.6]} 47... Nc2+ {[%clk 0:04:24.5]} 48. Kd2 {[%clk 0:00:48.8]}
48... Nd4 {[%clk 0:04:23.6]} 49. Ke3 {[%clk 0:00:47.5]} 49... Nf5+ {[%clk
0:03:43.5]} 50. Kd2 {[%clk 0:00:47.9]} 50... h5 {[%clk 0:03:39.5]} 51. Ba5
{[%clk 0:00:26.5]} 51... h4 {[%clk 0:03:37.2]} 52. Bd8 {[%clk 0:00:27.2]} 52...
h3 {[%clk 0:03:38.2]} 53. Ba5 {[%clk 0:00:28]} 53... Nd4 {[%clk 0:03:22.2]} 54.
Ke3 {[%clk 0:00:29.1]} 54... Nf5+ {[%clk 0:03:11.5]} 55. Kd2 {[%clk 0:00:30.3]}
55... Ng3 {[%clk 0:03:09.9]} 0-1

[Event "GrandPrix_29.05"]
[Site "Chess.com"]
[Date "2020.05.29"]
[Round "5"]
[White "LiamVrolijk"]
[Black "Benjoneliere44"]
[Result "1-0"]
[WhiteElo "2352"]
[BlackElo "2090"]
[TimeControl "600+2"]
[EndTime "11:30:09 PDT"]
[Termination "LiamVrolijk won by resignation"]

1. d4 {[%clk 0:10:01.9]} 1... d6 {[%clk 0:10:00.8]} 2. e4 {[%clk 0:10:02.5]}
2... g6 {[%clk 0:09:58.4]} 3. c4 {[%clk 0:10:02.4]} 3... Bg7 {[%clk 0:09:54.8]}
4. Nc3 {[%clk 0:10:03.6]} 4... Nf6 {[%clk 0:09:43]} 5. Be2 {[%clk 0:09:54.4]}
5... O-O {[%clk 0:09:42.3]} 6. h4 {[%clk 0:09:55.9]} 6... c5 {[%clk 0:09:38.2]}
7. d5 {[%clk 0:09:55.1]} 7... e6 {[%clk 0:09:37.6]} 8. h5 {[%clk 0:09:55.4]}
8... exd5 {[%clk 0:09:37.7]} 9. exd5 {[%clk 0:09:57.3]} 9... Re8 {[%clk
0:09:34.5]} 10. h6 {[%clk 0:09:56.3]} 10... Bh8 {[%clk 0:09:32.8]} 11. Bg5
{[%clk 0:09:57.6]} 11... a6 {[%clk 0:09:01]} 12. a4 {[%clk 0:09:38.4]} 12... Qb6
{[%clk 0:08:58.5]} 13. a5 {[%clk 0:07:12.8]} 13... Qxb2 {[%clk 0:08:43.6]} 14.
Na4 {[%clk 0:07:12.5]} 14... Qe5 {[%clk 0:07:56]} 15. Nf3 {[%clk 0:07:06.7]}
15... Qe7 {[%clk 0:07:53.9]} 16. Nb6 {[%clk 0:06:13.9]} 16... Ra7 {[%clk
0:07:53.3]} 17. Ra3 {[%clk 0:06:15.5]} 17... Nbd7 {[%clk 0:07:40.2]} 18. Re3
{[%clk 0:06:07.5]} 18... Qf8 {[%clk 0:07:40.8]} 19. Nxc8 {[%clk 0:05:41.2]}
19... Rxe3 {[%clk 0:07:22.7]} 20. Nxa7 {[%clk 0:05:08]} 20... Re7 {[%clk
0:06:15.5]} 21. Nc6 {[%clk 0:04:01.9]} 21... Re8 {[%clk 0:06:09]} 22. O-O {[%clk
0:03:52.3]} 22... Rc8 {[%clk 0:06:01.3]} 23. Nce5 {[%clk 0:01:44.2]} 23... dxe5
{[%clk 0:05:52.9]} 24. Qb1 {[%clk 0:01:45.1]} 24... Rb8 {[%clk 0:05:41.1]} 25.
Nd2 {[%clk 0:01:45.3]} 25... Ne8 {[%clk 0:05:26]} 26. f4 {[%clk 0:01:35.3]}
26... f5 {[%clk 0:05:22.3]} 27. fxe5 {[%clk 0:01:13.6]} 27... Bxe5 {[%clk
0:05:21.2]} 28. Nf3 {[%clk 0:01:14.4]} 28... Bd6 {[%clk 0:05:00.3]} 29. Bd3
{[%clk 0:01:14.3]} 29... Nef6 {[%clk 0:04:48.9]} 30. Re1 {[%clk 0:01:15.3]}
30... b6 {[%clk 0:04:31.6]} 31. axb6 {[%clk 0:01:14.7]} 31... Rxb6 {[%clk
0:04:33.5]} 32. Qa1 {[%clk 0:01:14.9]} 32... Ng4 {[%clk 0:03:56.1]} 33. Re6
{[%clk 0:01:02.4]} 33... Nxh6 {[%clk 0:03:47.6]} 34. Qe1 {[%clk 0:01:02.5]}
34... Rb8 {[%clk 0:03:44]} 35. Bxh6 {[%clk 0:01:00.5]} 35... Qxh6 {[%clk
0:03:42.2]} 36. Rxd6 {[%clk 0:01:01.6]} 36... Nf8 {[%clk 0:03:42.1]} 37. Rxa6
{[%clk 0:01:00.3]} 37... Qf4 {[%clk 0:03:35.8]} 38. Qd2 {[%clk 0:00:30.9]} 38...
Qg3 {[%clk 0:03:34.3]} 39. Qf2 {[%clk 0:00:29.9]} 39... Qf4 {[%clk 0:03:30.1]}
40. Ra1 {[%clk 0:00:27.7]} 40... Nd7 {[%clk 0:03:25.3]} 41. Re1 {[%clk
0:00:28.4]} 41... Rb3 {[%clk 0:03:24.2]} 42. Bf1 {[%clk 0:00:28.8]} 42... Nf6
{[%clk 0:03:09.9]} 43. Ne5 {[%clk 0:00:26.1]} 43... Qg5 {[%clk 0:02:19.2]} 44.
Qxc5 {[%clk 0:00:25.9]} 44... Kg7 {[%clk 0:02:20.6]} 45. Qe7+ {[%clk 0:00:26.1]}
45... Kh6 {[%clk 0:02:21.1]} 46. Nf7+ {[%clk 0:00:27.1]} 1-0

[Event "GrandPrix_29.05"]
[Site "Chess.com"]
[Date "2020.05.29"]
[Round "5"]
[White "Hero_in_my_life"]
[Black "Mesropov_Konstantin"]
[Result "0-1"]
[WhiteElo "2138"]
[BlackElo "2177"]
[TimeControl "600+2"]
[EndTime "11:30:09 PDT"]
[Termination "Mesropov_Konstantin won by resignation"]

1. e4 {[%clk 0:10:01.9]} 1... e6 {[%clk 0:09:57]} 2. d4 {[%clk 0:09:48.6]} 2...
d5 {[%clk 0:09:57.3]} 3. Nd2 {[%clk 0:09:42.2]} 3... Nc6 {[%clk 0:09:57.1]} 4.
Ngf3 {[%clk 0:09:36.7]} 4... Nf6 {[%clk 0:09:56.6]} 5. exd5 {[%clk 0:09:01.8]}
5... exd5 {[%clk 0:09:52.8]} 6. c3 {[%clk 0:08:32.3]} 6... Bf5 {[%clk
0:09:31.2]} 7. Bb5 {[%clk 0:08:14.6]} 7... Bd6 {[%clk 0:09:23]} 8. Qe2+ {[%clk
0:08:08.6]} 8... Qe7 {[%clk 0:08:58.1]} 9. Qxe7+ {[%clk 0:08:05.3]} 9... Kxe7
{[%clk 0:08:54.5]} 10. O-O {[%clk 0:06:24.8]} 10... Rhe8 {[%clk 0:08:38.1]} 11.
Ne5 {[%clk 0:06:00.2]} 11... Bxe5 {[%clk 0:08:11.5]} 12. dxe5 {[%clk 0:06:00.6]}
12... Nd7 {[%clk 0:07:28.7]} 13. Nf3 {[%clk 0:05:54]} 13... Be4 {[%clk
0:06:48.9]} 14. Bf4 {[%clk 0:05:33.9]} 14... Bxf3 {[%clk 0:06:36.5]} 15. gxf3
{[%clk 0:05:33.4]} 15... h6 {[%clk 0:05:18.1]} 16. Rfe1 {[%clk 0:05:25.4]} 16...
Nf8 {[%clk 0:05:06.5]} 17. Rad1 {[%clk 0:05:00.5]} 17... Rad8 {[%clk 0:04:51.9]}
18. e6 {[%clk 0:04:52.4]} 18... Nxe6 {[%clk 0:04:41.1]} 19. Bxc7 {[%clk
0:04:51.1]} 19... Rd7 {[%clk 0:04:42.2]} 20. Bg3 {[%clk 0:04:40.8]} 20... d4
{[%clk 0:03:49.5]} 21. cxd4 {[%clk 0:02:53.9]} 21... Rxd4 {[%clk 0:03:43.9]} 22.
Rxd4 {[%clk 0:02:54.5]} 22... Nxd4 {[%clk 0:03:42.3]} 23. Bxe8 {[%clk
0:02:55.9]} 23... Nxf3+ {[%clk 0:03:41.6]} 24. Kf1 {[%clk 0:02:57.8]} 24... Nxe1
{[%clk 0:03:38.7]} 25. Bxf7 {[%clk 0:02:59.3]} 25... Kxf7 {[%clk 0:03:23.7]} 26.
Kxe1 {[%clk 0:02:59.5]} 26... Kf6 {[%clk 0:03:23.7]} 27. Kd2 {[%clk 0:02:55.4]}
27... Kf5 {[%clk 0:03:14.1]} 28. Kd3 {[%clk 0:02:55.7]} 28... g5 {[%clk
0:03:11.5]} 29. Kc4 {[%clk 0:02:52.4]} 29... Ke4 {[%clk 0:03:10.7]} 30. b4
{[%clk 0:02:39.3]} 30... h5 {[%clk 0:02:55.3]} 31. h4 {[%clk 0:02:29.5]} 31...
gxh4 {[%clk 0:02:37.2]} 32. Bxh4 {[%clk 0:02:31.4]} 32... Nd4 {[%clk 0:02:34]}
33. Kc5 {[%clk 0:02:20.4]} 33... b6+ {[%clk 0:02:01.4]} 34. Kc4 {[%clk
0:02:14.3]} 34... a6 {[%clk 0:01:58.8]} 35. a4 {[%clk 0:02:10.5]} 35... Nf3
{[%clk 0:01:43.7]} 36. Bd8 {[%clk 0:01:37.5]} 36... Ne5+ {[%clk 0:01:38]} 37.
Kc3 {[%clk 0:01:33.9]} 37... b5 {[%clk 0:01:38.8]} 38. axb5 {[%clk 0:01:26]}
38... axb5 {[%clk 0:01:38.8]} 39. Bf6 {[%clk 0:01:24.9]} 39... Nf3 {[%clk
0:01:34.9]} 0-1

[Event "GrandPrix_29.05"]
[Site "Chess.com"]
[Date "2020.05.29"]
[Round "5"]
[White "Korona_91"]
[Black "Sunnika"]
[Result "0-1"]
[WhiteElo "1938"]
[BlackElo "2107"]
[TimeControl "600+2"]
[EndTime "11:30:20 PDT"]
[Termination "Sunnika won by resignation"]

1. e4 {[%clk 0:10:01.9]} 1... e6 {[%clk 0:09:31.9]} 2. Qe2 {[%clk 0:10:00]} 2...
Nf6 {[%clk 0:09:26.8]} 3. e5 {[%clk 0:09:57]} 3... Nd5 {[%clk 0:09:27.4]} 4. d4
{[%clk 0:09:53.3]} 4... c5 {[%clk 0:09:02.3]} 5. c4 {[%clk 0:09:37.8]} 5... Nc7
{[%clk 0:08:58.8]} 6. dxc5 {[%clk 0:09:35]} 6... Bxc5 {[%clk 0:08:49.1]} 7. Nc3
{[%clk 0:09:35.9]} 7... d5 {[%clk 0:08:24.3]} 8. Nf3 {[%clk 0:09:00.1]} 8... Nc6
{[%clk 0:08:17]} 9. Bg5 {[%clk 0:08:53.1]} 9... Be7 {[%clk 0:08:09.2]} 10. h4
{[%clk 0:08:23.3]} 10... h6 {[%clk 0:08:01.8]} 11. Bxe7 {[%clk 0:08:21.9]} 11...
Qxe7 {[%clk 0:08:01.4]} 12. O-O-O {[%clk 0:08:17.6]} 12... O-O {[%clk
0:08:02.8]} 13. g4 {[%clk 0:08:01.6]} 13... Rd8 {[%clk 0:07:56.9]} 14. g5 {[%clk
0:07:54.9]} 14... h5 {[%clk 0:07:53.5]} 15. g6 {[%clk 0:07:17.2]} 15... fxg6
{[%clk 0:07:53.1]} 16. Qc2 {[%clk 0:07:16.7]} 16... Qf7 {[%clk 0:06:19.5]} 17.
Rh3 {[%clk 0:06:15.2]} 17... d4 {[%clk 0:05:12.2]} 18. Ne4 {[%clk 0:05:43.4]}
18... Qf4+ {[%clk 0:05:13.4]} 19. Ned2 {[%clk 0:05:42.4]} 19... d3 {[%clk
0:04:57.8]} 20. Qc3 {[%clk 0:05:28.1]} 20... Qf5 {[%clk 0:02:25.2]} 21. Rg3
{[%clk 0:05:23.1]} 21... Na6 {[%clk 0:01:40.7]} 22. Rg5 {[%clk 0:04:55.3]} 22...
Qf4 {[%clk 0:01:30.6]} 23. Bxd3 {[%clk 0:04:45]} 23... Nab4 {[%clk 0:01:30.3]}
24. Bb1 {[%clk 0:04:44.9]} 24... Rd3 {[%clk 0:01:31.6]} 25. Qxd3 {[%clk
0:04:31.2]} 25... Nxd3+ {[%clk 0:01:30.5]} 26. Bxd3 {[%clk 0:04:32.3]} 26... Bd7
{[%clk 0:01:09.2]} 27. Rdg1 {[%clk 0:04:15.7]} 27... Nb4 {[%clk 0:00:35.1]} 28.
Bxg6 {[%clk 0:04:13.5]} 28... Bc6 {[%clk 0:00:35.6]} 29. Bxh5 {[%clk 0:04:01.2]}
29... Nxa2+ {[%clk 0:00:21]} 30. Kb1 {[%clk 0:03:59.3]} 30... Nb4 {[%clk
0:00:20.8]} 31. Rxg7+ {[%clk 0:03:50.1]} 31... Kh8 {[%clk 0:00:22]} 32. Rf7
{[%clk 0:03:04.5]} 32... Qh6 {[%clk 0:00:22]} 33. Bg6 {[%clk 0:02:55.6]} 33...
Rf8 {[%clk 0:00:16.7]} 34. Ng5 {[%clk 0:02:42.6]} 34... Qxg6+ {[%clk 0:00:16.2]}
35. Ka1 {[%clk 0:02:38.7]} 35... Rxf7 {[%clk 0:00:17.1]} 36. h5 {[%clk 0:02:40]}
36... Qf5 {[%clk 0:00:15.1]} 37. h6 {[%clk 0:02:18.8]} 37... Qxf2 {[%clk
0:00:15.7]} 38. Ndf3 {[%clk 0:02:19.2]} 38... Rxf3 {[%clk 0:00:13.7]} 39. Rd1
{[%clk 0:02:18]} 39... Rf8 {[%clk 0:00:11.5]} 0-1

[Event "GrandPrix_29.05"]
[Site "Chess.com"]
[Date "2020.05.29"]
[Round "5"]
[White "BakuTurk"]
[Black "SipkeErnst"]
[Result "0-1"]
[WhiteElo "2067"]
[BlackElo "2105"]
[TimeControl "600+2"]
[EndTime "11:30:22 PDT"]
[Termination "SipkeErnst won by resignation"]

1. d4 {[%clk 0:10:01.9]} 1... d5 {[%clk 0:09:56.3]} 2. Nf3 {[%clk 0:10:03]} 2...
c6 {[%clk 0:09:55.9]} 3. c4 {[%clk 0:09:49.3]} 3... e6 {[%clk 0:09:51.5]} 4. g3
{[%clk 0:09:48.9]} 4... dxc4 {[%clk 0:09:50]} 5. Bg2 {[%clk 0:09:50.8]} 5... Nd7
{[%clk 0:09:42.2]} 6. a4 {[%clk 0:09:34.3]} 6... Ngf6 {[%clk 0:09:20.3]} 7. O-O
{[%clk 0:09:34.3]} 7... b6 {[%clk 0:09:10.7]} 8. Qc2 {[%clk 0:09:31]} 8... Ba6
{[%clk 0:09:02.3]} 9. Rd1 {[%clk 0:09:15.9]} 9... Qc7 {[%clk 0:08:46.4]} 10. e4
{[%clk 0:08:45.7]} 10... Rc8 {[%clk 0:08:31.3]} 11. Bf4 {[%clk 0:07:35.5]} 11...
Qb7 {[%clk 0:08:29.9]} 12. Nbd2 {[%clk 0:06:50.6]} 12... Be7 {[%clk 0:08:17.6]}
13. Ne5 {[%clk 0:06:42.5]} 13... Nxe5 {[%clk 0:07:44.2]} 14. Bxe5 {[%clk
0:05:42.7]} 14... b5 {[%clk 0:07:43.4]} 15. axb5 {[%clk 0:05:37.5]} 15... cxb5
{[%clk 0:07:20.7]} 16. d5 {[%clk 0:05:25.1]} 16... Ng4 {[%clk 0:07:13.3]} 17.
Bxg7 {[%clk 0:03:53.7]} 17... Rg8 {[%clk 0:07:12.6]} 18. Bc3 {[%clk 0:03:54.5]}
18... Bc5 {[%clk 0:07:02.5]} 19. Rf1 {[%clk 0:03:44.3]} 19... b4 {[%clk
0:06:58.1]} 20. e5 {[%clk 0:03:19.4]} 20... exd5 {[%clk 0:05:53.2]} 21. Qxh7
{[%clk 0:02:53.9]} 21... Kf8 {[%clk 0:05:49.2]} 22. Ne4 {[%clk 0:01:21.2]} 22...
dxe4 {[%clk 0:05:32.9]} 23. Bxe4 {[%clk 0:01:21.9]} 23... Qb6 {[%clk 0:05:33.2]}
24. e6 {[%clk 0:01:03.8]} 24... Bxf2+ {[%clk 0:04:45.9]} 25. Kg2 {[%clk
0:00:53.4]} 25... Qxe6 {[%clk 0:04:30.5]} 26. Bxb4+ {[%clk 0:00:53.5]} 26... Rc5
{[%clk 0:03:21.6]} 27. Bxc5+ {[%clk 0:00:53.5]} 27... Bxc5 {[%clk 0:03:21.5]}
28. Rxa6 {[%clk 0:00:43.1]} 28... Bb6 {[%clk 0:03:18.9]} 29. Ra3 {[%clk
0:00:23.9]} 29... Ne3+ {[%clk 0:02:48.1]} 30. Rxe3 {[%clk 0:00:24.7]} 30... Bxe3
{[%clk 0:02:50]} 31. Rd1 {[%clk 0:00:21.6]} 31... Qf6 {[%clk 0:02:45.4]} 32. Bf3
{[%clk 0:00:17]} 32... Qxb2+ {[%clk 0:02:33]} 33. Kh1 {[%clk 0:00:18.2]} 33...
Qf6 {[%clk 0:02:33.3]} 34. Rf1 {[%clk 0:00:17.6]} 34... Rh8 {[%clk 0:02:32.4]}
35. Qe4 {[%clk 0:00:15.4]} 35... Qb2 {[%clk 0:02:26]} 36. Bg2 {[%clk 0:00:15.3]}
36... Qd4 {[%clk 0:01:55.2]} 37. Qe6 {[%clk 0:00:11.2]} 37... Rh7 {[%clk
0:01:52.9]} 38. Qc8+ {[%clk 0:00:10.6]} 38... Kg7 {[%clk 0:01:53.8]} 39. Qg4+
{[%clk 0:00:12.2]} 39... Qxg4 {[%clk 0:01:53.7]} 0-1

[Event "GrandPrix_29.05"]
[Site "Chess.com"]
[Date "2020.05.29"]
[Round "5"]
[White "Sakkcapak"]
[Black "Meri-Arabidze"]
[Result "1/2-1/2"]
[WhiteElo "2083"]
[BlackElo "2007"]
[TimeControl "600+2"]
[EndTime "11:30:22 PDT"]
[Termination "Game drawn by repetition"]

1. c4 {[%clk 0:10:01.9]} 1... e6 {[%clk 0:09:59.5]} 2. g3 {[%clk 0:10:01.8]}
2... d5 {[%clk 0:10:00.2]} 3. Nf3 {[%clk 0:10:02.1]} 3... Nf6 {[%clk 0:10:01.4]}
4. Bg2 {[%clk 0:10:02.5]} 4... dxc4 {[%clk 0:10:02.6]} 5. Qa4+ {[%clk
0:10:01.4]} 5... Nbd7 {[%clk 0:10:03.6]} 6. Qxc4 {[%clk 0:09:51.2]} 6... c5
{[%clk 0:10:04.5]} 7. O-O {[%clk 0:09:49]} 7... b6 {[%clk 0:10:05.4]} 8. d3
{[%clk 0:09:42.7]} 8... Bb7 {[%clk 0:10:05.4]} 9. b3 {[%clk 0:09:31.4]} 9... Be7
{[%clk 0:10:04.9]} 10. Bb2 {[%clk 0:09:32.2]} 10... O-O {[%clk 0:10:05.9]} 11.
Nbd2 {[%clk 0:09:32.5]} 11... a6 {[%clk 0:10:05.7]} 12. Rac1 {[%clk 0:08:55.2]}
12... b5 {[%clk 0:10:06.1]} 13. Qc3 {[%clk 0:08:51.8]} 13... Rc8 {[%clk
0:09:33.4]} 14. Rfd1 {[%clk 0:08:40.6]} 14... Qb6 {[%clk 0:09:12]} 15. Nf1
{[%clk 0:08:20.9]} 15... Rfd8 {[%clk 0:09:06.4]} 16. Ne3 {[%clk 0:08:21]} 16...
Bf8 {[%clk 0:09:05.9]} 17. Qd2 {[%clk 0:07:47.2]} 17... h6 {[%clk 0:08:55.1]}
18. Ne5 {[%clk 0:07:30.3]} 18... Bxg2 {[%clk 0:08:49.2]} 19. Nxg2 {[%clk
0:07:25.3]} 19... Nxe5 {[%clk 0:08:31.2]} 20. Bxe5 {[%clk 0:07:25.3]} 20... Nd5
{[%clk 0:08:32.2]} 21. Ne3 {[%clk 0:07:03.4]} 21... Ne7 {[%clk 0:07:48.8]} 22.
Bc3 {[%clk 0:06:21.9]} 22... Nc6 {[%clk 0:07:45]} 23. Ng4 {[%clk 0:06:09.6]}
23... Qb7 {[%clk 0:07:09.2]} 24. Qe3 {[%clk 0:05:07]} 24... Nd4 {[%clk
0:06:46.4]} 25. Ne5 {[%clk 0:05:02.3]} 25... Be7 {[%clk 0:05:08.8]} 26. h4
{[%clk 0:04:36.4]} 26... Qd5 {[%clk 0:04:23.6]} 27. Bxd4 {[%clk 0:04:06.6]}
27... Qxd4 {[%clk 0:04:00.8]} 28. Qxd4 {[%clk 0:04:03.1]} 28... Rxd4 {[%clk
0:04:02.7]} 29. e3 {[%clk 0:03:48.8]} 29... Rdd8 {[%clk 0:04:03.3]} 30. Kf1
{[%clk 0:03:48.2]} 30... Bf6 {[%clk 0:03:58.8]} 31. Nf3 {[%clk 0:03:48.7]} 31...
Kf8 {[%clk 0:03:46.2]} 32. Ke2 {[%clk 0:03:49.1]} 32... h5 {[%clk 0:03:44.4]}
33. Nd2 {[%clk 0:03:47.6]} 33... g6 {[%clk 0:03:20.4]} 34. Rc2 {[%clk
0:03:43.6]} 34... Be7 {[%clk 0:02:37]} 35. Rdc1 {[%clk 0:03:27.6]} 35... Rd5
{[%clk 0:02:23.3]} 36. Ne4 {[%clk 0:02:47.8]} 36... Rcd8 {[%clk 0:02:22.8]} 37.
Nxc5 {[%clk 0:02:25.5]} 37... Bxc5 {[%clk 0:02:21.1]} 38. Rxc5 {[%clk
0:02:27.4]} 38... Rxd3 {[%clk 0:02:22.5]} 39. R1c2 {[%clk 0:02:27]} 39... R3d6
{[%clk 0:02:17]} 40. Rc7 {[%clk 0:02:17.6]} 40... Ke8 {[%clk 0:02:03.4]} 41. Ra7
{[%clk 0:01:57.4]} 41... R8d7 {[%clk 0:01:53.1]} 42. Rc8+ {[%clk 0:01:52.2]}
42... Ke7 {[%clk 0:01:52.2]} 43. Rxd7+ {[%clk 0:01:52.6]} 43... Kxd7 {[%clk
0:01:49.3]} 44. Ra8 {[%clk 0:01:49.4]} 44... e5 {[%clk 0:01:41.7]} 45. e4 {[%clk
0:01:37.2]} 45... Ke6 {[%clk 0:01:37.7]} 46. Ke3 {[%clk 0:01:35]} 46... Rc6
{[%clk 0:01:33.8]} 47. Re8+ {[%clk 0:01:26.3]} 47... Kf6 {[%clk 0:01:27.9]} 48.
Ra8 {[%clk 0:01:26.5]} 48... Ke6 {[%clk 0:01:24.7]} 49. Re8+ {[%clk 0:01:26.4]}
49... Kf6 {[%clk 0:01:25.7]} 50. Ra8 {[%clk 0:01:27]} 50... Ke6 {[%clk
0:01:26.8]} 1/2-1/2

[Event "GrandPrix_29.05"]
[Site "Chess.com"]
[Date "2020.05.29"]
[Round "5"]
[White "vladislavkovalev"]
[Black "Evgeny81"]
[Result "1-0"]
[WhiteElo "2719"]
[BlackElo "2441"]
[TimeControl "600+2"]
[EndTime "11:30:24 PDT"]
[Termination "vladislavkovalev won by resignation"]

1. e4 {[%clk 0:10:01.9]} 1... e5 {[%clk 0:09:59.7]} 2. Nf3 {[%clk 0:10:03.4]}
2... Nc6 {[%clk 0:10:00.9]} 3. Bb5 {[%clk 0:10:04.9]} 3... a6 {[%clk 0:10:01.3]}
4. Ba4 {[%clk 0:10:06.3]} 4... Nf6 {[%clk 0:10:02.5]} 5. O-O {[%clk 0:10:07.5]}
5... Be7 {[%clk 0:10:03.7]} 6. d3 {[%clk 0:10:08.8]} 6... b5 {[%clk 0:10:03.1]}
7. Bb3 {[%clk 0:10:10.4]} 7... d6 {[%clk 0:10:04.2]} 8. a3 {[%clk 0:10:11.9]}
8... O-O {[%clk 0:10:03.8]} 9. Nc3 {[%clk 0:10:13.4]} 9... Nb8 {[%clk
0:10:03.9]} 10. Ng5 {[%clk 0:10:08.7]} 10... h6 {[%clk 0:09:37.2]} 11. f4 {[%clk
0:10:07.7]} 11... exf4 {[%clk 0:09:00.9]} 12. Nxf7 {[%clk 0:09:25.9]} 12... Rxf7
{[%clk 0:09:00.8]} 13. Bxf4 {[%clk 0:09:24.6]} 13... Qe8 {[%clk 0:06:55.5]} 14.
d4 {[%clk 0:09:17.5]} 14... Kh8 {[%clk 0:06:33.4]} 15. e5 {[%clk 0:08:41.2]}
15... dxe5 {[%clk 0:06:29.1]} 16. Bxf7 {[%clk 0:08:41.4]} 16... Qxf7 {[%clk
0:06:28.6]} 17. dxe5 {[%clk 0:08:42.9]} 17... Ng8 {[%clk 0:04:10.2]} 18. Bxh6
{[%clk 0:08:02.7]} 18... Qg6 {[%clk 0:03:34.7]} 19. Be3 {[%clk 0:08:02.8]} 19...
Bb7 {[%clk 0:03:31.1]} 20. Nd5 {[%clk 0:08:03.4]} 20... Nc6 {[%clk 0:02:50]} 21.
Rf3 {[%clk 0:07:35.1]} 21... Bg5 {[%clk 0:01:49.7]} 22. Rg3 {[%clk 0:06:42.2]}
22... Bxe3+ {[%clk 0:01:49.1]} 23. Nxe3 {[%clk 0:06:44.1]} 23... Qe4 {[%clk
0:01:45]} 24. Qh5+ {[%clk 0:04:44.4]} 24... Nh6 {[%clk 0:01:20.7]} 25. Rf1
{[%clk 0:04:45.3]} 25... Nd4 {[%clk 0:00:53.8]} 26. Rf6 {[%clk 0:04:00.5]} 26...
Ne2+ {[%clk 0:00:36.9]} 27. Qxe2 {[%clk 0:04:00.9]} 27... gxf6 {[%clk
0:00:37.9]} 28. Qh5 {[%clk 0:04:02.5]} 28... Qf4 {[%clk 0:00:25.6]} 29. Rh3
{[%clk 0:03:57.5]} 29... Kg7 {[%clk 0:00:05.2]} 30. Qxh6+ {[%clk 0:02:51.2]}
30... Qxh6 {[%clk 0:00:05.8]} 31. Nf5+ {[%clk 0:02:52.8]} 31... Kg6 {[%clk
0:00:06]} 32. Nxh6 {[%clk 0:02:54.4]} 32... Rd8 {[%clk 0:00:04.7]} 33. exf6
{[%clk 0:02:44.5]} 33... Rd2 {[%clk 0:00:03.9]} 34. f7 {[%clk 0:02:36]} 34...
Rxg2+ {[%clk 0:00:04.5]} 35. Kf1 {[%clk 0:02:37]} 35... Kg7 {[%clk 0:00:05.1]}
36. Rg3+ {[%clk 0:02:29.4]} 36... Rxg3 {[%clk 0:00:05.7]} 37. hxg3 {[%clk
0:02:31.3]} 37... Be4 {[%clk 0:00:02.9]} 38. c3 {[%clk 0:02:32.6]} 38... c5
{[%clk 0:00:03.1]} 39. Kf2 {[%clk 0:02:33.8]} 39... a5 {[%clk 0:00:04.1]} 40.
Ke3 {[%clk 0:02:34.9]} 40... Bc2 {[%clk 0:00:04.2]} 41. Kf4 {[%clk 0:02:35.7]}
41... b4 {[%clk 0:00:05.2]} 42. Ke5 {[%clk 0:02:28.3]} 42... bxa3 {[%clk
0:00:04.7]} 43. bxa3 {[%clk 0:02:29.5]} 43... c4 {[%clk 0:00:05.7]} 44. Ke6
{[%clk 0:02:27.8]} 44... Kf8 {[%clk 0:00:06.2]} 45. Kf6 {[%clk 0:02:28.5]} 1-0